[Event "*** Titled Tuesday Blitz"]
[Site "Chess.com"]
[Date "2020.05.05"]
[Round "7"]
[White "Grandmaster2B"]
[Black "DishonorOnYourCow"]
[Result "1-0"]
[WhiteElo "2482"]
[BlackElo "2335"]
[TimeControl "180+1"]
[EndTime "11:19:50 PDT"]
[Termination "Grandmaster2B won on time"]

1. e4 {[%clk 0:03:00.9]} 1... e5 {[%clk 0:02:59.4]} 2. Nf3 {[%clk 0:03:00.8]}
2... Nc6 {[%clk 0:02:59.1]} 3. Bb5 {[%clk 0:03:00.3]} 3... Nf6 {[%clk
0:02:57.8]} 4. O-O {[%clk 0:03:00]} 4... Nxe4 {[%clk 0:02:56.4]} 5. Re1 {[%clk
0:02:55.5]} 5... Nd6 {[%clk 0:02:52.7]} 6. Nxe5 {[%clk 0:02:55.1]} 6... Nxe5
{[%clk 0:02:48.9]} 7. Rxe5+ {[%clk 0:02:56]} 7... Be7 {[%clk 0:02:48.3]} 8. Bf1
{[%clk 0:02:56.6]} 8... O-O {[%clk 0:02:47.2]} 9. d4 {[%clk 0:02:57.1]} 9... Bf6
{[%clk 0:02:21.3]} 10. Re1 {[%clk 0:02:53.9]} 10... Re8 {[%clk 0:02:20.5]} 11.
c3 {[%clk 0:02:53.6]} 11... Rxe1 {[%clk 0:02:19.3]} 12. Qxe1 {[%clk 0:02:54.5]}
12... Ne8 {[%clk 0:02:19.6]} 13. Bf4 {[%clk 0:02:52.6]} 13... d5 {[%clk
0:02:19.3]} 14. Nd2 {[%clk 0:02:52.5]} 14... c6 {[%clk 0:02:19.2]} 15. Nf3
{[%clk 0:02:51.9]} 15... Bf5 {[%clk 0:02:17.9]} 16. Qd2 {[%clk 0:02:51]} 16...
Nd6 {[%clk 0:02:13.4]} 17. Ne5 {[%clk 0:02:46.4]} 17... Ne4 {[%clk 0:02:08.4]}
18. Qe1 {[%clk 0:02:41.3]} 18... Qe7 {[%clk 0:01:55.6]} 19. f3 {[%clk
0:02:39.5]} 19... Nd6 {[%clk 0:01:54.3]} 20. Qd2 {[%clk 0:02:36.4]} 20... Re8
{[%clk 0:01:51]} 21. Re1 {[%clk 0:02:34.6]} 21... Qd8 {[%clk 0:01:50.8]} 22. Bd3
{[%clk 0:02:28.1]} 22... Bxd3 {[%clk 0:01:45.5]} 23. Nxd3 {[%clk 0:02:29]} 23...
Nc4 {[%clk 0:01:42.5]} 24. Qd1 {[%clk 0:02:21.3]} 24... h6 {[%clk 0:01:38.1]}
25. b3 {[%clk 0:02:09.3]} 25... Nb6 {[%clk 0:01:37.3]} 26. Nc5 {[%clk
0:02:08.1]} 26... Re7 {[%clk 0:01:20.1]} 27. Qd2 {[%clk 0:01:39.7]} 27... Nc8
{[%clk 0:01:10.1]} 28. Rxe7 {[%clk 0:01:30.2]} 28... Qxe7 {[%clk 0:01:09.1]} 29.
Qe3 {[%clk 0:01:30.8]} 29... b6 {[%clk 0:00:59.5]} 30. Qxe7 {[%clk 0:01:29.6]}
30... Bxe7 {[%clk 0:00:58.7]} 31. Nd7 {[%clk 0:01:30.1]} 31... f6 {[%clk
0:00:38.3]} 32. Nb8 {[%clk 0:01:25.8]} 32... c5 {[%clk 0:00:37.3]} 33. Nc6
{[%clk 0:01:26.3]} 33... cxd4 {[%clk 0:00:35.9]} 34. cxd4 {[%clk 0:01:13.7]}
34... Kf7 {[%clk 0:00:34.9]} 35. Kf2 {[%clk 0:01:10.9]} 35... Ke8 {[%clk
0:00:33.9]} 36. h4 {[%clk 0:01:04.6]} 36... Kd7 {[%clk 0:00:33.6]} 37. Nb8+
{[%clk 0:00:51.5]} 37... Ke6 {[%clk 0:00:30.5]} 38. Na6 {[%clk 0:00:52]} 38...
g5 {[%clk 0:00:24.5]} 39. Bh2 {[%clk 0:00:43.7]} 39... Bd6 {[%clk 0:00:18.2]}
40. Bxd6 {[%clk 0:00:30.7]} 40... Kxd6 {[%clk 0:00:19.1]} 41. hxg5 {[%clk
0:00:27.5]} 41... hxg5 {[%clk 0:00:20]} 42. Nb4 {[%clk 0:00:25.8]} 42... a5
{[%clk 0:00:19.8]} 43. Nd3 {[%clk 0:00:24.8]} 43... Ne7 {[%clk 0:00:20.2]} 44.
g4 {[%clk 0:00:24.3]} 44... Nc6 {[%clk 0:00:20.2]} 45. Ke3 {[%clk 0:00:23.6]}
45... Ke6 {[%clk 0:00:19.1]} 46. f4 {[%clk 0:00:20.8]} 46... Kd6 {[%clk
0:00:18.3]} 47. a3 {[%clk 0:00:17.5]} 47... b5 {[%clk 0:00:17.9]} 48. fxg5
{[%clk 0:00:08.1]} 48... fxg5 {[%clk 0:00:17.5]} 49. Nc5 {[%clk 0:00:08.6]}
49... a4 {[%clk 0:00:12.8]} 50. bxa4 {[%clk 0:00:05.8]} 50... bxa4 {[%clk
0:00:12]} 51. Nxa4 {[%clk 0:00:06.7]} 51... Na5 {[%clk 0:00:11.9]} 52. Nb2
{[%clk 0:00:06.8]} 52... Kc6 {[%clk 0:00:11.3]} 53. Kd3 {[%clk 0:00:05.4]} 53...
Kb5 {[%clk 0:00:11.3]} 54. Kc3 {[%clk 0:00:05.3]} 54... Nc6 {[%clk 0:00:10.5]}
55. Nd3 {[%clk 0:00:02.5]} 55... Ka4 {[%clk 0:00:06.8]} 56. Nb4 {[%clk 0:00:03]}
56... Ne7 {[%clk 0:00:05]} 57. Nc2 {[%clk 0:00:03.2]} 57... Nc6 {[%clk
0:00:04.2]} 58. Ne3 {[%clk 0:00:02.6]} 58... Ne7 {[%clk 0:00:03.8]} 59. Nf5
{[%clk 0:00:03.1]} 59... Nc6 {[%clk 0:00:03.1]} 60. Nh6 {[%clk 0:00:02.4]} 60...
Kxa3 {[%clk 0:00:02.8]} 61. Nf7 {[%clk 0:00:03]} 1-0

[Event "*** Titled Tuesday Blitz"]
[Site "Chess.com"]
[Date "2020.05.05"]
[Round "7"]
[White "vpsetter"]
[Black "Guenplen"]
[Result "1-0"]
[WhiteElo "2657"]
[BlackElo "2943"]
[TimeControl "180+1"]
[EndTime "11:19:51 PDT"]
[Termination "vpsetter won by resignation"]

1. e4 {[%clk 0:02:58.7]} 1... c5 {[%clk 0:03:00]} 2. Nf3 {[%clk 0:02:58.9]} 2...
e6 {[%clk 0:03:00.1]} 3. d4 {[%clk 0:02:59.2]} 3... cxd4 {[%clk 0:03:01]} 4.
Nxd4 {[%clk 0:03:00]} 4... Nc6 {[%clk 0:03:01.5]} 5. Nc3 {[%clk 0:03:00]} 5...
a6 {[%clk 0:03:01.9]} 6. Be3 {[%clk 0:03:00]} 6... Nf6 {[%clk 0:03:01.3]} 7. f4
{[%clk 0:02:37.4]} 7... Bb4 {[%clk 0:02:59.9]} 8. Nxc6 {[%clk 0:02:35.6]} 8...
bxc6 {[%clk 0:02:59.1]} 9. e5 {[%clk 0:02:30.2]} 9... Nd5 {[%clk 0:02:58.9]} 10.
Bd2 {[%clk 0:02:30.3]} 10... Nxc3 {[%clk 0:02:58.6]} 11. Bxc3 {[%clk 0:02:24.7]}
11... Bxc3+ {[%clk 0:02:56.1]} 12. bxc3 {[%clk 0:02:24.9]} 12... O-O {[%clk
0:02:54]} 13. g3 {[%clk 0:02:02.9]} 13... Rb8 {[%clk 0:02:31.4]} 14. Qd4 {[%clk
0:01:42.3]} 14... c5 {[%clk 0:02:28.7]} 15. Qxc5 {[%clk 0:01:38]} 15... Bb7
{[%clk 0:02:28.9]} 16. Rg1 {[%clk 0:01:38]} 16... Rc8 {[%clk 0:02:24.4]} 17. Qb4
{[%clk 0:01:27.9]} 17... Qc7 {[%clk 0:02:19]} 18. Bd3 {[%clk 0:01:27.5]} 18...
a5 {[%clk 0:02:06.6]} 19. Qd4 {[%clk 0:01:22.8]} 19... Qxc3+ {[%clk 0:02:06.1]}
20. Qxc3 {[%clk 0:01:00.6]} 20... Rxc3 {[%clk 0:02:07]} 21. Kd2 {[%clk
0:01:01.2]} 21... Rc5 {[%clk 0:02:06.6]} 22. Rgb1 {[%clk 0:00:53.9]} 22... Bc6
{[%clk 0:01:59.7]} 23. Rb3 {[%clk 0:00:45.9]} 23... f6 {[%clk 0:01:58.2]} 24.
exf6 {[%clk 0:00:45.1]} 24... gxf6 {[%clk 0:01:54]} 25. Rab1 {[%clk 0:00:25]}
25... e5 {[%clk 0:01:20.8]} 26. Rc3 {[%clk 0:00:19]} 26... Rxc3 {[%clk
0:01:20.9]} 27. Kxc3 {[%clk 0:00:19.5]} 27... exf4 {[%clk 0:01:21.8]} 28. gxf4
{[%clk 0:00:19.7]} 28... Kf7 {[%clk 0:01:22.3]} 29. Kd4 {[%clk 0:00:18.4]} 29...
Ke7 {[%clk 0:00:45.6]} 30. Rg1 {[%clk 0:00:17.4]} 30... Kd6 {[%clk 0:00:38.5]}
31. Bxh7 {[%clk 0:00:15.4]} 31... Rb8 {[%clk 0:00:35]} 32. h4 {[%clk 0:00:11.9]}
32... Rb4+ {[%clk 0:00:32.7]} 33. Ke3 {[%clk 0:00:10.7]} 33... Rb5 {[%clk
0:00:27.8]} 34. Bg6 {[%clk 0:00:10.1]} 34... Rc5 {[%clk 0:00:19.4]} 35. h5
{[%clk 0:00:10.1]} 35... Rc3+ {[%clk 0:00:19.6]} 36. Bd3 {[%clk 0:00:10.2]}
36... Rc5 {[%clk 0:00:19.8]} 37. h6 {[%clk 0:00:08.9]} 37... Rh5 {[%clk
0:00:19.8]} 38. h7 {[%clk 0:00:09.3]} 38... f5 {[%clk 0:00:20.3]} 39. Bxf5
{[%clk 0:00:09]} 39... Kc5 {[%clk 0:00:13.6]} 40. Rg8 {[%clk 0:00:06.5]} 40...
Rxf5 {[%clk 0:00:10.3]} 41. h8=Q {[%clk 0:00:06.7]} 41... Rd5 {[%clk 0:00:11.2]}
42. Qc3+ {[%clk 0:00:06.3]} 42... Kd6 {[%clk 0:00:11.6]} 43. Qf6+ {[%clk
0:00:05.8]} 43... Kc5 {[%clk 0:00:11.5]} 44. Rg5 {[%clk 0:00:05.8]} 44... Kc4
{[%clk 0:00:10.6]} 45. Rxd5 {[%clk 0:00:05.8]} 45... Kxd5 {[%clk 0:00:11.5]} 46.
Qe5+ {[%clk 0:00:05.9]} 46... Kc4 {[%clk 0:00:11.5]} 47. Qd4+ {[%clk 0:00:06.3]}
47... Kb5 {[%clk 0:00:11.6]} 48. a4+ {[%clk 0:00:06.8]} 48... Ka6 {[%clk
0:00:10.3]} 49. f5 {[%clk 0:00:07.2]} 1-0

[Event "*** Titled Tuesday Blitz"]
[Site "Chess.com"]
[Date "2020.05.05"]
[Round "7"]
[White "JulAnt"]
[Black "1977Ivan"]
[Result "0-1"]
[WhiteElo "2457"]
[BlackElo "2643"]
[TimeControl "180+1"]
[EndTime "11:19:51 PDT"]
[Termination "1977Ivan won on time"]

1. e4 {[%clk 0:03:00.9]} 1... c5 {[%clk 0:02:59]} 2. Nf3 {[%clk 0:03:00.9]} 2...
e6 {[%clk 0:02:58.8]} 3. d4 {[%clk 0:03:01.2]} 3... cxd4 {[%clk 0:02:59.7]} 4.
Nxd4 {[%clk 0:03:02.1]} 4... Nc6 {[%clk 0:03:00.1]} 5. Nc3 {[%clk 0:03:02]} 5...
Qc7 {[%clk 0:03:00.5]} 6. Be2 {[%clk 0:03:01.5]} 6... a6 {[%clk 0:02:59.8]} 7.
O-O {[%clk 0:02:59.8]} 7... Bc5 {[%clk 0:02:59.2]} 8. Be3 {[%clk 0:02:57.2]}
8... d6 {[%clk 0:02:58.9]} 9. Kh1 {[%clk 0:02:53.7]} 9... Nf6 {[%clk 0:02:56.9]}
10. f4 {[%clk 0:02:47.5]} 10... O-O {[%clk 0:02:40.7]} 11. Bg1 {[%clk
0:02:40.3]} 11... Ne7 {[%clk 0:02:22.1]} 12. Bf3 {[%clk 0:02:35.4]} 12... e5
{[%clk 0:02:21.7]} 13. Nde2 {[%clk 0:02:22]} 13... Bxg1 {[%clk 0:02:20.7]} 14.
Rxg1 {[%clk 0:02:22.9]} 14... b5 {[%clk 0:02:16.4]} 15. a3 {[%clk 0:02:14.5]}
15... Bb7 {[%clk 0:02:16]} 16. f5 {[%clk 0:02:07.8]} 16... Rad8 {[%clk
0:02:12.8]} 17. Qe1 {[%clk 0:02:05.1]} 17... d5 {[%clk 0:02:08]} 18. exd5 {[%clk
0:02:02.5]} 18... Nexd5 {[%clk 0:02:08.9]} 19. Nxd5 {[%clk 0:02:00.6]} 19...
Bxd5 {[%clk 0:02:08.6]} 20. Bxd5 {[%clk 0:01:59.4]} 20... Rxd5 {[%clk
0:02:07.9]} 21. Nc3 {[%clk 0:01:56.3]} 21... Rd4 {[%clk 0:02:07.9]} 22. h3
{[%clk 0:01:51.6]} 22... h6 {[%clk 0:02:05.7]} 23. Qe3 {[%clk 0:01:51.4]} 23...
Re8 {[%clk 0:02:03.3]} 24. Rae1 {[%clk 0:01:51.4]} 24... Qc6 {[%clk 0:01:59.2]}
25. Qg3 {[%clk 0:01:48.7]} 25... Rd2 {[%clk 0:01:39.2]} 26. Rxe5 {[%clk
0:01:28.1]} 26... Rxe5 {[%clk 0:01:38.4]} 27. Qxe5 {[%clk 0:01:29]} 27... Rxc2
{[%clk 0:01:38.5]} 28. Ne2 {[%clk 0:01:29.2]} 28... Qe4 {[%clk 0:01:31]} 29.
Qb8+ {[%clk 0:01:18.5]} 29... Kh7 {[%clk 0:01:30.1]} 30. Ng3 {[%clk 0:01:18.6]}
30... Qh4 {[%clk 0:01:12.3]} 31. Rf1 {[%clk 0:00:44.2]} 31... Ne4 {[%clk
0:01:05.2]} 32. Nxe4 {[%clk 0:00:38.4]} 32... Qxe4 {[%clk 0:01:04.4]} 33. Qg3
{[%clk 0:00:38]} 33... Rxb2 {[%clk 0:00:58.8]} 34. f6 {[%clk 0:00:38.2]} 34...
g5 {[%clk 0:00:55.5]} 35. Rg1 {[%clk 0:00:32.4]} 35... Re2 {[%clk 0:00:53.1]}
36. Qd6 {[%clk 0:00:22.3]} 36... Re3 {[%clk 0:00:48.8]} 37. Qh2 {[%clk
0:00:13.7]} 37... Rxa3 {[%clk 0:00:41.9]} 38. Rd1 {[%clk 0:00:10.4]} 38... Qf4
{[%clk 0:00:39.1]} 39. Qg1 {[%clk 0:00:09.8]} 39... Kg6 {[%clk 0:00:32]} 40. Qc5
{[%clk 0:00:04.9]} 40... Rxh3+ {[%clk 0:00:30.5]} 41. gxh3 {[%clk 0:00:03.5]}
41... Qf3+ {[%clk 0:00:30.6]} 42. Kh2 {[%clk 0:00:03.4]} 42... Qxd1 {[%clk
0:00:29.6]} 43. Qf8 {[%clk 0:00:03.5]} 43... Qe2+ {[%clk 0:00:28]} 44. Kh1
{[%clk 0:00:03.8]} 44... Qf3+ {[%clk 0:00:27.8]} 45. Kh2 {[%clk 0:00:04.3]}
45... Qxf6 {[%clk 0:00:27.8]} 46. Qg8+ {[%clk 0:00:04.8]} 46... Qg7 {[%clk
0:00:27.7]} 47. Qc8 {[%clk 0:00:03.8]} 47... Qe5+ {[%clk 0:00:27.1]} 48. Kh1
{[%clk 0:00:03.4]} 48... Qe4+ {[%clk 0:00:26.7]} 49. Kh2 {[%clk 0:00:03.9]}
49... Qe2+ {[%clk 0:00:25.8]} 50. Kh1 {[%clk 0:00:04.1]} 50... Qf3+ {[%clk
0:00:25.7]} 51. Kh2 {[%clk 0:00:04.2]} 51... Qf4+ {[%clk 0:00:20.7]} 52. Kh1
{[%clk 0:00:04.3]} 52... Qf6 {[%clk 0:00:20.1]} 53. Qc2+ {[%clk 0:00:03.2]}
53... Qf5 {[%clk 0:00:18.3]} 54. Qc6+ {[%clk 0:00:03]} 54... Kh5 {[%clk
0:00:17.9]} 55. Qxa6 {[%clk 0:00:01.9]} 55... Qxh3+ {[%clk 0:00:17.4]} 56. Kg1
{[%clk 0:00:02.4]} 56... Qe3+ {[%clk 0:00:17.2]} 57. Kh1 {[%clk 0:00:02.5]}
57... Qe4+ {[%clk 0:00:17.1]} 58. Kg1 {[%clk 0:00:02.7]} 58... b4 {[%clk
0:00:17.2]} 0-1

[Event "*** Titled Tuesday Blitz"]
[Site "Chess.com"]
[Date "2020.05.05"]
[Round "7"]
[White "2346PL"]
[Black "ilya261991"]
[Result "0-1"]
[WhiteElo "2365"]
[BlackElo "2527"]
[TimeControl "180+1"]
[EndTime "11:19:51 PDT"]
[Termination "ilya261991 won by resignation"]

1. d4 {[%clk 0:03:00.9]} 1... Nf6 {[%clk 0:02:58.6]} 2. Bg5 {[%clk 0:03:01.2]}
2... e6 {[%clk 0:02:57.8]} 3. Nf3 {[%clk 0:03:00.7]} 3... Be7 {[%clk 0:02:56.8]}
4. e3 {[%clk 0:03:00.3]} 4... O-O {[%clk 0:02:56.5]} 5. Bd3 {[%clk 0:03:00.1]}
5... b6 {[%clk 0:02:55.8]} 6. c4 {[%clk 0:02:59.3]} 6... Bb7 {[%clk 0:02:56.2]}
7. Nc3 {[%clk 0:02:59.7]} 7... d5 {[%clk 0:02:55]} 8. cxd5 {[%clk 0:02:55.7]}
8... exd5 {[%clk 0:02:54.7]} 9. Ne5 {[%clk 0:02:50.9]} 9... h6 {[%clk
0:02:53.4]} 10. Bh4 {[%clk 0:02:49.3]} 10... Nbd7 {[%clk 0:02:52.8]} 11. Nxd7
{[%clk 0:02:41.4]} 11... Qxd7 {[%clk 0:02:44.2]} 12. O-O {[%clk 0:02:36.6]}
12... Ne4 {[%clk 0:02:43.6]} 13. Bxe7 {[%clk 0:02:23.3]} 13... Qxe7 {[%clk
0:02:41]} 14. Rc1 {[%clk 0:02:16.9]} 14... Nxc3 {[%clk 0:02:37.7]} 15. Rxc3
{[%clk 0:02:15.8]} 15... c5 {[%clk 0:02:37.9]} 16. Qh5 {[%clk 0:02:08.2]} 16...
cxd4 {[%clk 0:02:31.7]} 17. exd4 {[%clk 0:02:07.9]} 17... Rad8 {[%clk
0:02:20.5]} 18. h4 {[%clk 0:02:01.6]} 18... Bc8 {[%clk 0:02:16.8]} 19. Rfc1
{[%clk 0:01:58]} 19... Qf6 {[%clk 0:01:54.2]} 20. Kh2 {[%clk 0:00:41.6]} 20...
Qxd4 {[%clk 0:01:47]} 21. Rxc8 {[%clk 0:00:40.9]} 21... Qf4+ {[%clk 0:01:20.7]}
22. Kh3 {[%clk 0:00:40.6]} 22... Rxc8 {[%clk 0:01:18.1]} 23. Re1 {[%clk
0:00:31.2]} 23... Qxf2 {[%clk 0:00:56.2]} 24. Rf1 {[%clk 0:00:27.4]} 24... Qe3+
{[%clk 0:00:46.2]} 25. Rf3 {[%clk 0:00:26.9]} 25... Qe6+ {[%clk 0:00:31.6]} 26.
Bf5 {[%clk 0:00:26.5]} 26... Qe7 {[%clk 0:00:13.3]} 27. Rg3 {[%clk 0:00:24]}
27... Rc6 {[%clk 0:00:11.2]} 28. Qg4 {[%clk 0:00:22]} 28... g6 {[%clk
0:00:10.3]} 29. h5 {[%clk 0:00:22]} 29... g5 {[%clk 0:00:10.5]} 30. Bd3 {[%clk
0:00:21.1]} 30... Rf6 {[%clk 0:00:09.7]} 31. Qd4 {[%clk 0:00:17.9]} 31... Qe6+
{[%clk 0:00:09.3]} 32. Kh2 {[%clk 0:00:17.4]} 32... Re8 {[%clk 0:00:09.2]} 33.
Bb5 {[%clk 0:00:15.5]} 33... Re7 {[%clk 0:00:08.3]} 34. Qc3 {[%clk 0:00:13]}
34... Qe5 {[%clk 0:00:08.3]} 35. Qc8+ {[%clk 0:00:12.7]} 35... Kg7 {[%clk
0:00:07.4]} 36. Bd3 {[%clk 0:00:12.2]} 36... Rf4 {[%clk 0:00:06.8]} 37. Qc3
{[%clk 0:00:07.3]} 37... Qxc3 {[%clk 0:00:05.7]} 38. bxc3 {[%clk 0:00:07]} 38...
d4 {[%clk 0:00:06.1]} 39. c4 {[%clk 0:00:04]} 39... Re3 {[%clk 0:00:06.1]} 40.
Bc2 {[%clk 0:00:02]} 40... Rxg3 {[%clk 0:00:05.9]} 41. Kxg3 {[%clk 0:00:02.9]}
41... Rf6 {[%clk 0:00:06.2]} 42. Kh2 {[%clk 0:00:01.5]} 42... Rd6 {[%clk
0:00:06]} 43. Bd3 {[%clk 0:00:02.4]} 43... f6 {[%clk 0:00:05.4]} 44. g4 {[%clk
0:00:03.3]} 44... Kf7 {[%clk 0:00:05.9]} 45. Kg3 {[%clk 0:00:03.8]} 45... Ke6
{[%clk 0:00:06]} 46. Kf3 {[%clk 0:00:04.7]} 46... Ke5 {[%clk 0:00:06.7]} 47. Kf2
{[%clk 0:00:04.4]} 47... Rc6 {[%clk 0:00:06.9]} 48. Kf3 {[%clk 0:00:05.3]} 48...
a6 {[%clk 0:00:06.9]} 49. a4 {[%clk 0:00:05.6]} 49... Rc5 {[%clk 0:00:07.6]} 50.
Kf2 {[%clk 0:00:05.2]} 50... Ra5 {[%clk 0:00:08.5]} 51. Bc2 {[%clk 0:00:04.6]}
51... Kd6 {[%clk 0:00:08.2]} 52. Ke2 {[%clk 0:00:04.5]} 52... Kc5 {[%clk
0:00:09.1]} 53. Kd3 {[%clk 0:00:05]} 53... b5 {[%clk 0:00:09.7]} 54. axb5 {[%clk
0:00:04.9]} 54... axb5 {[%clk 0:00:10.6]} 55. cxb5 {[%clk 0:00:05.4]} 55... Rxb5
{[%clk 0:00:10.8]} 56. Ke4 {[%clk 0:00:05.6]} 56... Rb2 {[%clk 0:00:10.1]} 57.
Bd3 {[%clk 0:00:05.6]} 57... Rf2 {[%clk 0:00:09.8]} 58. Ba6 {[%clk 0:00:04.3]}
58... Rf4+ {[%clk 0:00:10.7]} 59. Kd3 {[%clk 0:00:04.7]} 59... Rxg4 {[%clk
0:00:11.1]} 60. Bc8 {[%clk 0:00:05.2]} 60... Rh4 {[%clk 0:00:11.9]} 61. Bf5
{[%clk 0:00:05.1]} 61... Rxh5 {[%clk 0:00:12.1]} 62. Ke4 {[%clk 0:00:05.9]}
62... Rh4+ {[%clk 0:00:12.6]} 0-1

[Event "*** Titled Tuesday Blitz"]
[Site "Chess.com"]
[Date "2020.05.05"]
[Round "7"]
[White "allvim"]
[Black "Turquoise_2701"]
[Result "0-1"]
[WhiteElo "2327"]
[BlackElo "2169"]
[TimeControl "180+1"]
[EndTime "11:19:52 PDT"]
[Termination "Turquoise_2701 won by resignation"]

1. e4 {[%clk 0:03:00.9]} 1... c5 {[%clk 0:02:56]} 2. Nf3 {[%clk 0:02:58.9]} 2...
d6 {[%clk 0:02:54.9]} 3. d4 {[%clk 0:02:59]} 3... cxd4 {[%clk 0:02:55.8]} 4.
Nxd4 {[%clk 0:02:59.5]} 4... Nf6 {[%clk 0:02:56.4]} 5. Nc3 {[%clk 0:02:58.1]}
5... a6 {[%clk 0:02:56.2]} 6. Be3 {[%clk 0:02:57.3]} 6... e5 {[%clk 0:02:55.6]}
7. Nb3 {[%clk 0:02:56.8]} 7... Be6 {[%clk 0:02:55.2]} 8. f3 {[%clk 0:02:57.2]}
8... Nbd7 {[%clk 0:02:54.7]} 9. Qd2 {[%clk 0:02:57.6]} 9... Be7 {[%clk 0:02:55]}
10. O-O-O {[%clk 0:02:57.5]} 10... h6 {[%clk 0:02:55.5]} 11. g4 {[%clk
0:02:56.4]} 11... b5 {[%clk 0:02:54.6]} 12. Kb1 {[%clk 0:02:56.3]} 12... Qc7
{[%clk 0:02:54.8]} 13. h4 {[%clk 0:02:56.1]} 13... Rc8 {[%clk 0:02:53.7]} 14.
Be2 {[%clk 0:02:50.4]} 14... b4 {[%clk 0:02:52]} 15. Nd5 {[%clk 0:02:49.6]}
15... Bxd5 {[%clk 0:02:49.7]} 16. exd5 {[%clk 0:02:50.1]} 16... Nb6 {[%clk
0:02:48.8]} 17. Bxb6 {[%clk 0:02:48.6]} 17... Qxb6 {[%clk 0:02:49.7]} 18. g5
{[%clk 0:02:49]} 18... Nd7 {[%clk 0:02:47.6]} 19. f4 {[%clk 0:02:33.5]} 19... a5
{[%clk 0:02:19]} 20. Bg4 {[%clk 0:02:30]} 20... a4 {[%clk 0:02:07.8]} 21. Nc1
{[%clk 0:02:28.6]} 21... a3 {[%clk 0:01:56.6]} 22. Bxd7+ {[%clk 0:02:26.6]}
22... Kxd7 {[%clk 0:01:56.3]} 23. fxe5 {[%clk 0:02:27.5]} 23... axb2 {[%clk
0:01:54.6]} 24. Nd3 {[%clk 0:02:27.5]} 24... hxg5 {[%clk 0:01:46.1]} 25. hxg5
{[%clk 0:02:22.2]} 25... Rxh1 {[%clk 0:01:46.3]} 26. Rxh1 {[%clk 0:02:23]} 26...
Qd4 {[%clk 0:01:42.5]} 27. e6+ {[%clk 0:01:38.9]} 27... fxe6 {[%clk 0:01:38.8]}
28. dxe6+ {[%clk 0:01:39.8]} 28... Kxe6 {[%clk 0:01:37.6]} 29. Re1+ {[%clk
0:01:38]} 29... Kd7 {[%clk 0:01:35.7]} 30. Qe2 {[%clk 0:01:38.3]} 30... Re8
{[%clk 0:01:26.8]} 31. Qe6+ {[%clk 0:01:35.8]} 31... Kd8 {[%clk 0:01:23.3]} 32.
Qf7 {[%clk 0:00:38.4]} 32... Qc3 {[%clk 0:00:56]} 33. Re2 {[%clk 0:00:19.8]}
33... b3 {[%clk 0:00:47.7]} 34. axb3 {[%clk 0:00:15.1]} 34... Qa5 {[%clk
0:00:48]} 35. Kxb2 {[%clk 0:00:11.8]} 35... Qxg5 {[%clk 0:00:32.9]} 36. Re6
{[%clk 0:00:05.7]} 36... Qf6+ {[%clk 0:00:29.1]} 37. Qxf6 {[%clk 0:00:04.7]}
37... Bxf6+ {[%clk 0:00:27.9]} 38. Rxf6 {[%clk 0:00:05.1]} 38... gxf6 {[%clk
0:00:27.9]} 39. Kc3 {[%clk 0:00:04.8]} 39... Kd7 {[%clk 0:00:24.4]} 40. Kd4
{[%clk 0:00:05.4]} 40... Rc8 {[%clk 0:00:24.5]} 41. c4 {[%clk 0:00:05.5]} 41...
Rb8 {[%clk 0:00:23.4]} 42. b4 {[%clk 0:00:06.1]} 42... f5 {[%clk 0:00:23.9]} 43.
b5 {[%clk 0:00:07]} 43... Ke6 {[%clk 0:00:19.5]} 44. Nf4+ {[%clk 0:00:07.3]}
44... Kf6 {[%clk 0:00:19.6]} 45. Kd5 {[%clk 0:00:08.2]} 45... Kg5 {[%clk
0:00:19.4]} 46. Ne6+ {[%clk 0:00:08]} 46... Kg4 {[%clk 0:00:19.8]} 47. Kxd6
{[%clk 0:00:08.5]} 47... Rb6+ {[%clk 0:00:16.1]} 48. Kd5 {[%clk 0:00:06.8]}
48... f4 {[%clk 0:00:15.7]} 49. Nxf4 {[%clk 0:00:06.5]} 49... Kxf4 {[%clk
0:00:16.6]} 50. Kc5 {[%clk 0:00:07.3]} 50... Rb8 {[%clk 0:00:16.3]} 51. Kc6
{[%clk 0:00:08.2]} 51... Ke5 {[%clk 0:00:16.6]} 52. Kc7 {[%clk 0:00:08.9]} 52...
Rh8 {[%clk 0:00:15.9]} 53. c5 {[%clk 0:00:08.9]} 53... Rh7+ {[%clk 0:00:16.1]}
54. Kb8 {[%clk 0:00:04.9]} 54... Kd5 {[%clk 0:00:12.1]} 55. c6 {[%clk
0:00:05.4]} 55... Kd6 {[%clk 0:00:11.6]} 56. Kc8 {[%clk 0:00:03.6]} 56... Kc5
{[%clk 0:00:08.9]} 57. c7 {[%clk 0:00:03.7]} 57... Kb6 {[%clk 0:00:07.7]} 58.
Kd8 {[%clk 0:00:04.2]} 58... Rxc7 {[%clk 0:00:07.7]} 0-1